bitfinex-derivatives/quotes_SOLF0:USTF0_20250829
["timestamp","ask_amount","ask_price","bid_price","bid_amount"]
[1756454510640,11.7064,209.93,209.86,27.62]
[1756454510844,7.42,210.02,209.89,11.66423335]
[1756454511039,66.6533,210.01,209.93,11.66423335]
[1756454511235,4.2859,209.96,209.94,7.67]
[1756454511443,66.641,210.05,209.94,7.67]
[1756454511444,66.6412,210.05,209.94,7.67]
[1756454511748,4.2848,210.01,209.95,0.03143957]
[1756454512340,4.2848,210.01,209.87,5.313217]
[1756454512341,66.6917,209.89,209.86,23.75]
[1756454512651,66.6917,209.89,209.61,320.1]
[1756454512652,66.7139,209.82,209.75,11.66423335]
[1756454512940,66.7073,209.84,209.75,11.66423335]
[1756454513444,66.7073,209.84,209.73,11.66423335]
[1756454513643,66.7073,209.84,209.62,7.969826]
[1756454513644,66.7405,209.74,209.62,7.67]
[1756454513849,66.7431,209.73,209.64,11.66423335]
[1756454514047,66.7431,209.73,209.62,7.67]
[1756454514439,4.2912,209.7,209.62,7.67]
[1756454514640,0.03561455,209.71,209.62,7.67]
[1756454514845,4.32661455,209.71,209.62,7.67]
[1756454515542,4.2915,209.69,209.62,7.67]
[1756454516543,4.2915,209.69,209.55,129.0]
[1756454516544,4.2919,209.67,209.57,7.67]
[1756454517348,0.03047957,209.64,209.57,7.67]
[1756454517949,0.03047957,209.64,209.58,11.66423335]
[1756454518149,0.03047957,209.64,209.59,7.67]
[1756454518651,0.03047957,209.64,209.58,11.66423335]
[1756454519545,0.03047957,209.64,209.59,7.67]
[1756454519746,0.03047957,209.64,209.58,11.66423335]
[1756454520149,66.7308,209.77,209.63,7.67]
[1756454521349,4.2903,209.75,209.68,0.03223125]
[1756454522241,4.2896,209.78,209.68,0.03223125]
[1756454524152,4.2901,209.76,209.68,0.03223125]
[1756454524447,66.7329,209.77,209.68,0.03223125]
[1756454525245,4.2905,209.74,209.68,0.03223125]
[1756454530051,0.03087416,209.73,209.68,7.66223125]
[1756454530448,0.02,209.82,209.71,7.63]
[1756454530844,4.2893,209.8,209.71,7.63]
[1756454531853,4.2893,209.8,209.73,0.03230129]
[1756454533258,4.2887,209.83,209.74,19.29423335]
[1756454533454,0.02,209.87,209.78,19.29423335]
[1756454533955,4.288,209.86,209.8,0.03076432]
[1756454535052,4.2883,209.85,209.8,0.03076432]
[1756454535354,4.2883,209.85,209.8,7.66076432]
[1756454535752,4.2877,209.88,209.8,7.66076432]
[1756454536859,4.2879,209.87,209.8,7.66076432]
[1756454537154,66.6925,209.89,209.8,7.66076432]
[1756454538358,4.2881,209.85,209.81,7.63]
[1756454538553,4.2881,209.85,209.8,0.03076432]
[1756454539359,66.6925,209.89,209.8,0.03076432]
[1756454539360,66.7112,209.83,209.8,0.03076432]
[1756454539659,66.7112,209.83,209.8,6.432e-05]
[1756454540256,4.2889,209.81,209.8,6.432e-05]
[1756454541656,66.6844,209.92,209.8,6.432e-05]
[1756454541657,66.6706,209.96,209.81,7.63]
[1756454541861,66.6801,209.93,209.9,11.66423335]
[1756454542058,66.6731,209.95,209.9,11.66423335]
[1756454542259,66.6861,209.91,209.85,11.66423335]
[1756454542455,66.6861,209.91,209.81,24.55168136]
[1756454542656,4.2875,209.88,209.82,4.5701029]
[1756454542851,4.2875,209.88,209.83,4.5701029]
[1756454543061,66.6763,209.94,209.84,4.5701029]
[1756454543362,66.6643,209.98,209.78,109.409826]
[1756454543363,66.6676,209.97,209.86,7.63]
[1756454543563,66.6676,209.97,209.87,4.5701029]
[1756454543766,66.6731,209.95,209.88,4.5701029]
[1756454544056,66.6807,209.93,209.89,4.5701029]
[1756454544252,70.9703,209.92,209.9,4.5701029]
[1756454544564,70.9703,209.92,209.91,2.9e-06]
[1756454544859,4.2868,209.92,209.91,2.9e-06]
[1756454545560,4.2868,209.92,209.81,5.25744801]
[1756454545957,4.2872,209.9,209.81,5.25744801]
[1756454547562,4.2872,209.9,209.82,5.25744801]
[1756454547763,4.2872,209.9,209.81,5.25744801]
[1756454548261,4.2872,209.9,209.8,19.29423335]
[1756454548262,4.2867,209.93,209.85,11.66423335]
[1756454548558,66.6673,209.97,209.85,11.66423335]
[1756454548956,66.6858,209.91,209.83,5.25744801]
[1756454549157,66.6923,209.89,209.8,11.66423335]
[1756454549360,66.6962,209.88,209.8,11.66423335]
[1756454549658,66.7086,209.84,209.75,137.52896412]
[1756454549860,66.7121,209.83,209.75,137.52896412]
[1756454550659,4.2892,209.8,209.75,137.52896412]
[1756454551162,66.7216,209.8,209.71,11.66423335]
[1756454551366,4.29,209.76,209.71,11.66423335]
[1756454551562,195.1321,209.83,209.67,24.55168136]
[1756454551760,4.2882,209.85,209.68,5.25744801]
[1756454551957,4.2882,209.85,209.7,24.55168136]
[1756454552157,4.2882,209.85,209.74,11.66423335]
[1756454552469,4.2886,209.83,209.74,11.66423335]
[1756454552964,4.2886,209.83,209.72,11.66423335]
[1756454553467,4.289,209.81,209.72,11.66423335]
[1756454553667,66.7148,209.82,209.72,11.66423335]
[1756454553861,66.7118,209.83,209.72,11.66423335]
[1756454553862,66.7207,209.8,209.72,11.66423335]
[1756454554361,66.7311,209.77,209.71,19.62]
[1756454554760,66.7276,209.78,209.71,19.62]
[1756454554962,4.2904,209.74,209.71,19.62]
[1756454558464,4.2899,209.77,209.71,19.62]
[1756454559469,66.7157,209.82,209.71,19.62]
[1756454560165,66.728,209.78,209.71,19.62]
[1756454560366,66.7304,209.77,209.71,19.62]
[1756454560968,4.2904,209.74,209.71,19.62]
[1756454563567,71.0304,209.74,209.71,19.62]
[1756454564268,4.2904,209.74,209.71,19.62]
[1756454564572,4.2904,209.74,209.71,27.22]
[1756454564968,4.2904,209.74,209.71,19.62]
[1756454566074,4.2899,209.77,209.71,31.28423335]
[1756454566275,66.7094,209.84,209.76,7.6]
[1756454566469,194.203,209.86,209.76,7.6]
[1756454566470,66.7143,209.82,209.76,7.6]
[1756454567172,4.2896,209.78,209.76,7.6]
[1756454568166,4.2896,209.78,209.74,16.92168136]
[1756454568372,4.2896,209.78,209.75,7.6]
[1756454569877,4.29,209.76,209.75,7.6]
[1756454570575,4.2895,209.79,209.75,12.85744801]
[1756454570778,4.2895,209.79,209.75,5.25744801]
[1756454570973,4.2895,209.79,209.76,7.6]
[1756454571278,66.7184,209.81,209.75,5.25744801]
[1756454572378,4.2891,209.8,209.78,3.97036215]
[1756454572678,66.7184,209.81,209.72,19.63405935]
[1756454572679,66.7184,209.81,209.77,3.97036215]
[1756454573276,66.7184,209.81,209.76,3.97036215]
[1756454573773,4.2895,209.78,209.76,3.97036215]
[1756454575375,66.7076,209.85,209.76,3.97036215]
[1756454575576,66.7118,209.83,209.77,3.97036215]
[1756454575784,66.7148,209.82,209.76,3.97036215]
[1756454576282,4.2898,209.77,209.76,3.97036215]
[1756454579775,4.2902,209.75,209.74,12.85744801]
[1756454580384,66.7382,209.75,209.71,19.62]
[1756454581080,4.2906,209.73,209.71,19.62]
[1756454582579,4.2906,209.73,209.72,3.98589178]
[1756454582880,4.2906,209.73,209.71,23.60589178]
[1756454585282,4.2906,209.73,209.71,3.98589178]
[1756454585783,66.7382,209.75,209.67,7.6]
[1756454585784,4.291,209.71,209.7,3.98589178]
[1756454586181,4.291,209.71,209.7,11.58589178]
[1756454587687,4.291,209.71,209.7,3.98589178]
[1756454587984,4.292,209.66,209.64,32.67]
[1756454588685,4.292,209.66,209.64,25.3243]
[1756454588891,125.88,209.65,209.64,0.0001]
[1756454589186,126.36,209.65,209.64,0.0001]
[1756454589389,66.794,209.57,209.5,1.36]
[1756454589589,66.7971,209.56,209.5,1.36]
[1756454589987,4.2951,209.51,209.5,1.36]
[1756454590287,4.2951,209.51,209.5,8.44]
[1756454591191,4.2951,209.51,209.5,7.08]
[1756454593293,4.2955,209.49,209.47,7.08]
[1756454593487,4.2955,209.49,209.46,125.78]
[1756454593687,4.2955,209.49,209.47,7.08]
[1756454594089,4.2955,209.49,209.46,125.78]
[1756454594483,4.2955,209.49,209.47,7.08]
[1756454596693,66.8038,209.54,209.45,125.5]
[1756454597187,4.2953,209.5,209.45,125.5]
[1756454597393,4.2953,209.5,209.46,7.08]
[1756454597595,4.2953,209.5,209.45,125.5]
[1756454597793,4.2953,209.5,209.46,7.08]
[1756454598888,4.2953,209.5,209.45,125.5]
[1756454599088,4.2953,209.5,209.44,7.08]
[1756454599693,4.2957,209.49,209.44,7.08]
[1756454599890,4.2957,209.49,209.44,125.3]
[1756454600291,4.2951,209.51,209.45,7.08]
[1756454602496,66.8392,209.43,209.33,295.99421019]
[1756454602890,4.2983,209.36,209.33,295.99421019]
[1756454603293,4.2983,209.36,209.33,288.91421019]
[1756454603494,66.8227,209.48,209.35,7.61118891]
[1756454603796,66.8255,209.47,209.36,7.08]
[1756454603997,66.8255,209.47,209.38,7.61118891]
[1756454604393,4.2969,209.43,209.38,7.61118891]
[1756454604594,4.2969,209.43,209.39,7.08]
[1756454604794,66.8293,209.46,209.39,7.08]
[1756454605496,66.8385,209.43,209.34,11.70023378]
[1756454605801,66.8385,209.43,209.35,7.08]
[1756454606496,4.2973,209.4,209.33,414.23421019]
[1756454606701,4.2973,209.4,209.34,7.08]
[1756454607499,66.8385,209.43,209.34,7.08]
[1756454608199,66.8446,209.41,209.34,7.08]
[1756454608804,66.8446,209.41,209.3,5.97]
[1756454608805,66.8545,209.38,209.3,5.97]
[1756454608997,66.8515,209.39,209.3,5.97]
[1756454609199,4.2987,209.34,209.3,5.97]
[1756454609502,4.2987,209.34,209.3,7.08]
[1756454610102,4.2989,209.33,209.26,7.08]
[1756454610704,4.2993,209.31,209.24,7.08]
[1756454611102,66.8703,209.33,209.24,7.08]
[1756454611302,66.8643,209.35,209.23,132.48]
[1756454611504,66.8702,209.33,209.23,132.48]
[1756454611694,4.2989,209.33,209.23,132.48]
[1756454611894,66.8639,209.35,209.23,132.48]
[1756454612302,4.2992,209.31,209.23,132.48]
[1756454612904,125.38,209.39,209.24,7.08]
[1756454613105,66.8494,209.4,209.24,7.08]
[1756454613696,4.2984,209.35,209.26,11.70023378]
[1756454613906,4.2984,209.35,209.27,7.08]
[1756454614503,4.2987,209.34,209.27,7.08]
[1756454615107,4.2989,209.33,209.27,7.08]
[1756454615811,4.2991,209.32,209.27,7.08]
[1756454616006,66.8748,209.32,209.23,132.48]
[1756454616211,66.8807,209.3,209.23,125.4]
[1756454616810,4.2998,209.28,209.23,125.4]
[1756454617009,0.03,209.28,209.23,125.4]
[1756454617315,0.03,209.28,209.21,11.852]
[1756454617820,4.3006,209.24,209.21,11.852]
[1756454618402,4.3006,209.24,209.21,7.08]
[1756454618807,66.9164,209.28,209.2,5.97]
[1756454618808,4.3009,209.23,209.2,5.97]
[1756454619404,4.3312,209.22,209.2,5.97]
[1756454619610,0.03,209.21,209.2,5.97]
[1756454619812,66.9119,209.2,209.1,7.37]
[1756454620114,66.9145,209.19,209.1,7.37]
[1756454620503,66.9177,209.18,209.1,7.37]
[1756454620913,66.9119,209.2,209.1,7.37]
[1756454621309,66.9156,209.19,209.1,7.37]
[1756454621713,66.9119,209.2,209.1,7.37]
[1756454621714,66.9213,209.17,209.1,7.37]
[1756454622017,66.9276,209.15,209.07,64.68]
[1756454622813,0.03,209.18,209.08,7.37]
[1756454623310,4.3024,209.15,209.08,7.37]
[1756454624312,66.93,209.24,209.09,7.37]
[1756454624515,0.03,209.24,209.09,7.37]
[1756454624913,4.3013,209.21,209.09,7.37]
[1756454625108,0.03,209.24,209.12,11.70023378]
[1756454625411,66.8859,209.28,209.14,7.37]
[1756454625715,4.3007,209.24,209.14,7.37]
[1756454626210,4.3002,209.26,209.14,7.37]
[1756454626608,0.03,209.3,209.17,7.37]
[1756454627207,0.03,209.3,209.2,11.70023378]
[1756454627411,0.03,209.3,209.2,19.07023378]
[1756454628818,4.3002,209.26,209.2,19.07023378]
[1756454630012,4.3006,209.25,209.2,19.07023378]
[1756454630420,4.3006,209.25,209.21,7.37]
[1756454631321,4.2999,209.28,209.22,7.37]
[1756454631523,0.03,209.34,209.22,7.37]
[1756454632019,66.8857,209.38,209.25,7.37]
[1756454633023,4.2987,209.34,209.25,7.37]
[1756454633219,66.8608,209.36,209.25,7.37]
[1756454633719,4.2992,209.31,209.25,7.37]
[1756454634124,4.2989,209.32,209.23,7.37]
[1756454634321,66.8656,209.35,209.23,7.37]
[1756454634827,4.2993,209.31,209.23,7.37]
[1756454636219,4.2988,209.33,209.23,7.37]
[1756454636728,66.8679,209.34,209.23,7.37]
[1756454636924,0.03,209.33,209.23,7.37]
[1756454637120,4.2995,209.3,209.23,7.37]
[1756454637721,66.8738,209.32,209.23,7.37]
[1756454638728,0.03,209.33,209.23,7.37]
[1756454639627,4.2991,209.32,209.23,7.37]
[1756454639825,0.03,209.33,209.23,7.37]
[1756454640328,4.2991,209.32,209.23,7.37]
[1756454640725,4.2986,209.34,209.25,7.37]
[1756454641031,66.8604,209.36,209.25,7.37]
[1756454641328,0.03,209.35,209.25,7.37]
[1756454641531,4.2991,209.32,209.25,7.37]
[1756454641729,0.03,209.35,209.25,7.37]
[1756454643627,4.2993,209.31,209.25,7.37]
[1756454643830,66.8671,209.34,209.25,7.37]
[1756454644230,248.61119584,209.2,209.19,91.02023378]
[1756454644527,66.8702,209.33,209.19,11.70023378]
[1756454644733,7.22,209.27,209.17,11.70023378]
[1756454644932,7.22,209.27,209.14,28.16]
[1756454645135,4.3013,209.21,209.14,28.16]
[1756454645434,7.22,209.23,209.1,125.42]
[1756454645830,66.9058,209.22,209.1,125.42]
[1756454646037,66.9058,209.22,209.09,11.70023378]
[1756454646038,66.9117,209.2,209.09,11.70023378]
[1756454646227,4.3026,209.15,209.09,11.70023378]
[1756454646533,4.3026,209.15,209.06,320.8]
[1756454646534,66.918,209.18,209.06,320.8]
[1756454647432,66.9275,209.15,209.06,320.8]
[1756454647630,66.9316,209.14,209.06,320.8]
[1756454647842,7.73,209.12,209.05,5.98]
[1756454648040,7.73,209.12,209.05,9.96915113]
[1756454648236,7.73,209.12,209.05,5.98]
[1756454648443,66.934,209.13,209.05,5.98]
[1756454648444,66.9472,209.09,209.05,5.98]
[1756454648744,7.73,209.07,209.05,5.98]
[1756454649246,66.95,209.08,209.05,5.98]
[1756454649440,7.73,209.07,209.05,5.98]
[1756454649641,7.73,209.07,209.05,5.41647319]
[1756454649847,7.73,209.05,208.97,3.98915113]
[1756454650144,7.73,209.05,208.96,3.98915113]
[1756454650446,12.0346,209.05,208.97,3.98915113]
[1756454650847,12.0346,209.05,208.96,3.98915113]
[1756454651046,12.0346,209.05,208.97,3.98915113]
[1756454651452,4.3049,209.03,208.96,3.98915113]
[1756454651644,4.3049,209.03,208.95,3.98915113]
[1756454651845,4.3049,209.03,208.96,3.98915113]
[1756454652045,7.73,209.05,208.96,3.98915113]
[1756454652241,4.3044,209.06,208.95,3.98915113]
[1756454652441,7.73,209.12,208.98,3.98915113]
[1756454652640,7.73,209.12,208.99,3.98915113]
[1756454653846,7.73,209.1,208.98,3.98915113]
[1756454654054,7.73,209.1,208.97,4.00915113]
[1756454654444,7.73,209.1,209.01,0.02]
[1756454654749,7.73,209.1,209.01,111.34915113]
[1756454655956,7.73,209.1,209.01,107.36]
[1756454657451,7.73,209.1,209.01,111.34915113]
[1756454663759,7.73,209.1,209.02,3.98915113]
[1756454664156,7.73,209.19,209.05,0.02]
[1756454664462,7.73,209.16,209.05,0.02]
[1756454664757,4.3032,209.12,209.05,56.88]
[1756454664966,7.73,209.12,209.03,125.42]
[1756454665454,66.931,209.14,209.04,0.02]
[1756454665661,74.6551,209.16,209.04,0.02]
[1756454665857,7.73,209.12,209.04,0.02]
[1756454666361,66.9467,209.09,208.99,3.98915113]
[1756454666569,66.9467,209.09,208.98,256.2127715]
[1756454666570,7.73,209.08,208.98,256.2127715]
[1756454667363,7.73,209.08,208.98,252.22362037]
[1756454668357,7.73,209.07,208.98,126.80362037]
[1756454668856,7.73,209.05,208.98,126.78362037]
[1756454669057,12.0353,209.02,208.98,126.78362037]
[1756454669258,7.73,209.01,208.98,126.78362037]
[1756454669464,66.9527,209.08,208.94,0.02]
[1756454669465,66.9659,209.03,208.94,0.02]
[1756454669964,4.3057,208.99,208.94,0.02]
[1756454671265,12.0361,208.98,208.92,451.81]
[1756454671468,12.0361,208.98,208.92,326.41]
[1756454671664,12.0363,208.97,208.92,451.81]
[1756454671860,74.7124,208.98,208.92,5.41]
[1756454672266,7.73,208.93,208.92,5.41]
[1756454672561,66.9852,208.97,208.89,125.38]
[1756454672562,66.9941,208.95,208.89,125.38]
[1756454672761,4.3078,208.9,208.87,124.99327044]
[1756454672957,7.73,208.9,208.8,0.02]
[1756454673364,67.011,208.89,208.8,0.02]
[1756454673765,67.011,208.89,208.78,321.28]
[1756454673766,7.73,208.85,208.78,321.28]
[1756454674167,7.73,208.85,208.77,125.38]
[1756454674569,12.0393,208.82,208.77,125.38]
[1756454674763,7.73,208.83,208.77,125.38]
[1756454675365,67.0271,208.84,208.78,0.03463707]
[1756454675667,7.73,208.82,208.78,0.03463707]
[1756454675868,4.3095,208.81,208.78,0.03463707]
[1756454676068,67.0338,208.82,208.78,0.03463707]
[1756454676971,11.7398,208.79,208.78,0.03463707]
[1756454677166,7.43,208.79,208.71,5.42]
[1756454677765,7.43,208.79,208.71,5.48]
[1756454677969,74.4536,208.85,208.71,5.48]
[1756454678469,0.03160764,208.8,208.71,5.48]
[1756454678972,7.43,208.79,208.71,5.42]
[1756454679568,7.43,208.79,208.72,125.42]
[1756454679771,4.3101,208.78,208.72,125.42]
[1756454679970,7.43,208.79,208.72,125.42]
[1756454680372,7.43,208.79,208.71,5.42]
[1756454680673,4.3101,208.78,208.71,130.84]
[1756454680867,7.43,208.79,208.71,130.84]
[1756454681670,0.03160764,208.8,208.72,11.76023378]
[1756454681874,0.03160764,208.8,208.73,0.06]
[1756454682167,0.03160764,208.8,208.74,125.44]
[1756454682366,0.03160764,208.8,208.75,0.06]
[1756454682567,0.03160764,208.8,208.76,125.44]
[1756454682769,0.03160764,208.8,208.77,125.44]
[1756454683073,0.03160764,208.8,208.78,0.06]
[1756454683574,0.03160764,208.8,208.79,0.06]
[1756454683775,7.43,208.94,208.79,0.06]
[1756454683972,7.43,208.94,208.81,0.03]
[1756454684375,7.43,208.94,208.82,34.28]
[1756454684668,7.43,208.94,208.83,0.03]
[1756454684875,4.307,208.93,208.83,0.03]
[1756454686369,4.307,208.93,208.84,38.52]
[1756454686566,4.3074,208.91,208.85,49.84]
[1756454686773,7.43,208.94,208.85,60.78]
[1756454687770,11.7369,208.94,208.85,60.78]
[1756454688176,4.3072,208.92,208.85,60.78]
[1756454689478,4.3072,208.92,208.83,0.03]
[1756454689674,4.3072,208.92,208.84,18.18]
[1756454690871,7.43,208.94,208.84,18.18]
[1756454691068,7.43,208.94,208.83,33.13]
[1756454691868,7.43,208.94,208.83,0.03]
[1756454692068,7.43,208.94,208.84,59.68]
[1756454692473,4.3071,208.92,208.84,59.68]
[1756454693279,4.3075,208.91,208.84,59.68]
[1756454693681,4.3075,208.91,208.83,0.03]
[1756454693884,4.3075,208.91,208.83,33.17]
[1756454694474,4.3077,208.9,208.83,0.03]
[1756454694974,4.3077,208.9,208.81,3.98915113]
[1756454695175,7.43,208.89,208.81,45.46]
[1756454695583,7.43,208.89,208.8,15.68938491]
[1756454696079,7.43,208.89,208.78,15.71938491]
[1756454696283,7.43,208.89,208.79,56.54]
[1756454696480,7.43,208.89,208.78,15.71938491]
[1756454696680,7.43,208.89,208.79,107.08]
[1756454697483,4.3084,208.87,208.79,107.08]
[1756454697684,7.43,208.89,208.79,107.08]
[1756454698287,7.43,208.95,208.82,0.03]
[1756454699585,7.43,208.95,208.82,47.87]
[1756454699886,4.307,208.93,208.82,47.87]
[1756454700288,4.307,208.93,208.82,51.85915113]
[1756454700587,7.43,208.95,208.82,51.85915113]
[1756454701186,4.3071,208.93,208.83,75.54]
[1756454701790,7.43,209.04,208.88,3.98915113]
[1756454701988,7.43,209.04,208.89,0.03]
[1756454702181,4.3057,208.99,208.89,0.03]
[1756454702384,7.43,208.99,208.89,11.73023378]
[1756454702785,7.43,208.99,208.89,37.31023378]
[1756454703386,7.43,208.99,208.89,41.29938491]
[1756454703689,7.43,208.99,208.89,15.71938491]
[1756454703888,11.7358,208.99,208.89,15.71938491]
[1756454704294,74.415,208.97,208.87,3.98915113]
[1756454704494,66.9914,208.95,208.83,3.98915113]
[1756454704696,66.999,208.93,208.81,15.68938491]
[1756454704893,7.43,208.92,208.81,15.68938491]
[1756454705194,7.43,208.88,208.81,3.98915113]
[1756454705395,7.43,208.88,208.8,3.98915113]
[1756454706791,7.57,208.86,208.78,5.43]
[1756454707693,7.57,208.84,208.78,5.43]
[1756454708297,7.57,208.78,208.7,3.98275073]
[1756454708491,7.57,208.78,208.69,3.98275073]
[1756454709095,7.57,208.76,208.69,3.98275073]
[1756454709399,7.57,208.76,208.66,3.98275073]
[1756454709793,4.3109,208.74,208.66,3.98275073]
[1756454709989,7.57,208.73,208.66,3.98275073]
[1756454710188,4.3113,208.72,208.65,3.98275073]
[1756454710391,74.6322,208.73,208.65,3.98275073]
[1756454710703,7.57,208.71,208.6,3.98275073]
[1756454710899,7.57,208.67,208.6,3.98275073]
[1756454711199,7.57,208.67,208.58,3.98275073]
[1756454711796,4.313,208.64,208.58,3.98275073]
[1756454712298,4.313,208.64,208.57,3.98275073]
[1756454712498,11.883,208.64,208.57,3.98275073]
[1756454712906,7.57,208.64,208.56,3.98275073]
[1756454713196,7.57,208.64,208.55,3.98275073]
[1756454713797,4.3132,208.63,208.55,3.98275073]
[1756454713998,67.098,208.62,208.54,3.98275073]
[1756454714200,67.098,208.62,208.52,3.98275073]
[1756454714406,4.3137,208.61,208.51,3.98275073]
[1756454714799,7.57,208.6,208.51,3.98275073]
[1756454715300,7.57,208.6,208.5,3.98275073]
[1756454716203,7.57,208.6,208.49,325.60275073]
[1756454716502,7.57,208.6,208.53,0.03047822]
[1756454716897,7.57,208.59,208.53,0.03047822]
[1756454717995,67.1063,208.6,208.53,0.03047822]
[1756454717996,4.3147,208.56,208.53,0.03047822]
[1756454718201,11.70023378,208.56,208.4,3.98275073]
[1756454718401,7.57,208.53,208.38,5.5]
[1756454718600,7.57,208.53,208.38,9.48275073]
[1756454719205,7.57,208.53,208.38,5.5]
[1756454719506,7.60304666,208.48,208.38,5.5]
[1756454719705,7.60304666,208.48,208.38,130.78]
[1756454720204,0.03304666,208.48,208.39,9.48275073]
[1756454720404,0.03304666,208.48,208.39,5.5]
[1756454721101,0.03304666,208.48,208.42,5.5]
[1756454721496,7.57,208.64,208.46,5.47]
[1756454721700,7.57,208.64,208.5,5.47]
[1756454723106,7.57,208.64,208.46,3.98275073]
[1756454723311,7.57,208.59,208.46,5.47]
[1756454723905,4.3143,208.58,208.46,5.47]
[1756454724301,7.57,208.59,208.46,5.47]
[1756454724500,7.57,208.55,208.4,5.47]
[1756454724703,7.57,208.55,208.4,71.09]
[1756454725702,11.885,208.55,208.4,71.09]
[1756454727416,7.57,208.55,208.41,5.47]
[1756454727706,7.57,208.6,208.45,5.47]
[1756454728315,188.76909914,208.65,208.45,5.47]
[1756454728516,188.76909914,208.65,208.48,11.70023378]
[1756454728716,188.76909914,208.65,208.49,127.39]
[1756454728915,7.57,208.65,208.52,11.70023378]
[1756454729108,7.57,208.7,208.57,11.70023378]
[1756454729314,7.57,208.7,208.58,41.77]
[1756454729515,7.57,208.75,208.58,5.47]
[1756454729715,7.57,208.75,208.59,109.98]
[1756454730308,4.311,208.74,208.59,109.98]
[1756454730608,7.57,208.75,208.59,109.98]
[1756454731612,7.57,208.75,208.58,5.47]
[1756454731613,7.57,208.75,208.6,125.3]
[1756454732214,7.57,208.75,208.61,125.28]
[1756454732723,11.8808,208.75,208.61,125.28]
[1756454733722,7.57,208.72,208.58,5.47]
[1756454734414,7.57,208.7,208.58,5.47]
[1756454734611,7.57,208.7,208.53,5.47]
[1756454734612,19.27023378,208.7,208.53,5.47]
[1756454734817,7.57,208.68,208.53,67.39]
[1756454735016,7.57,208.63,208.53,67.39]
[1756454735625,4.3134,208.62,208.53,5.47]
[1756454736320,7.57,208.63,208.53,5.47]
[1756454736718,11.8834,208.63,208.53,5.47]
[1756454737822,7.57,208.63,208.53,5.47]
[1756454738221,7.23,208.68,208.53,5.47]
[1756454738423,4.3124,208.67,208.53,5.47]
[1756454740120,7.23,208.68,208.53,5.47]
[1756454740324,7.23,208.74,208.56,5.44]
[1756454740525,7.23,208.74,208.58,5.44]
[1756454741020,0.83294439,209.02,208.57,85.68]
[1756454741021,7.23,208.82,208.64,5.44]
[1756454741221,7.23,208.82,208.66,5.44]
[1756454741420,7.23,208.82,208.65,104.1]
[1756454741421,7.23,208.82,208.67,11.70023378]
[1756454741619,7.23,208.82,208.68,5.44]
[1756454741932,7.23,208.82,208.71,5.44]
[1756454742423,7.23,208.82,208.72,36.76]
[1756454742623,11.5395,208.82,208.72,36.76]
[1756454743227,11.5395,208.82,208.71,59.54]
[1756454746630,11.5395,208.82,208.71,78.66]
[1756454748129,7.23,208.82,208.71,78.66]
[1756454748636,19.6777733,208.91,208.71,78.66]
[1756454748637,7.23,208.9,208.73,9.42275073]
[1756454749036,7.23,208.88,208.73,5.44]
[1756454749239,7.23,208.88,208.73,9.42275073]
[1756454749432,7.23,208.88,208.73,46.66275073]